Cogmind - Beta 13 @@@ ROGUE MODE // 2024.06.15 @ 21:11:12 Player: JackZewap Result: Destroyed by C-17 Slicer with Blade Saw Performance ------------- Evolutions (4) 2000 Regions Visited (14) 2800 Robots Destroyed (108) 540 Value Destroyed (4731) 4731 Prototype IDs (6) 120 Alien Tech Used (0) 0 Bonus (3454) 3454 TOTAL SCORE: 13645 Bonus ------- High Alert Combat Kills 598 Follower Combat Kills 556 Entered Garrisons 800 Used RIF Installer 1000 Entered DSFs 500 Cogmind --------- Core Integrity 0/850 Matter 26/300 Energy 99/100 System Corruption 6% Temperature Cool (0) Movement Core (50) Location -6/Garrison Parts ------- > --- POWER (1) -------- (None) > --- PROPULSION (4) --- (None) > --- UTILITY (8) ------ (None) > --- WEAPON (2) ------- (None) > --- INVENTORY (5) ---- Cooling System Hacking Suite Relay Coupler [Sentry] (13) Lance Lance Peak State ------------ > --- POWER ------------ Angular Momentum Engine > --- PROPULSION ------- Flexi-carbon Leg Flexi-carbon Leg Flexi-carbon Leg Flexi-carbon Leg > --- UTILITY ---------- Cooling System Compact Battery Enhanced Optical Array Heavy Armor Plating Medium Reactive Plating Medium Reflective Plating > --- WEAPON ----------- Enhanced Gauss Cannon Enhanced Gauss Cannon > --- INVENTORY -------- Cooling System Cooling System Relay Coupler [Sentry] Lance Lance [Rating: 63] Favorites ----------- Power Improved Ion Engine Engine Improved Ion Engine Power Core Micro Nuclear Core Propulsion Light Treads Treads Light Treads Leg Flexi-carbon Leg Wheel Armored Huge Wheel Hover Unit Gravmag System Flight Unit Surge Thruster Utility Compact Battery Device Improved Cooling System Storage Compact Battery Processor Targeting Computer Hackware Relay Coupler [Swarmer] Protection Improved Light Armor Plating Weapon Enhanced Autogun Energy Gun Small Laser Energy Cannon Beam Cannon Ballistic Gun Enhanced Autogun Ballistic Cannon Enhanced Gauss Cannon Launcher Mini Grenade Launcher Special Weapon Remote Datajack Impact Weapon Heavy Flail Slashing Weapon Katana Piercing Weapon Lance Build | -11 -10 -10 -9 -9 -9 -8 -8 -8 -7 -7 -7 -7 -6 -6 ------- Run | Yrd Mat Min Mat Sto Gar Mat Gar Mat Fac Gar Fac DSF Fac Gar Slots Evolved 8 | . . . 2 . . 2 . . 2 . . . 2 . Power . | . . . . . . . . . . . . . . . Propulsion 2 | . . . . . . . . . . . . . 2 . Utility 6 | . . . 2 . . 2 . . 2 . . . . . Weapon . | . . . . . . . . . . . . . . . Parts Attached 180 | 6 17 10 13 10 19 27 18 1 14 25 2 14 4 . Power 19 | 1 2 2 1 . 1 3 2 . 2 4 . 1 . . Engine 15 | 1 2 1 1 . 1 3 1 . 2 2 . 1 . . Core 4 | . . 1 . . . . 1 . . 2 . . . . Reactor . | . . . . . . . . . . . . . . . Propulsion 37 | 2 7 4 5 5 2 3 4 . 1 . . 2 2 . Treads 21 | 2 2 3 5 5 2 2 . . . . . . . . Leg 10 | . 5 1 . . . . . . . . . 2 2 . Wheel 1 | . . . . . . . . . 1 . . . . . Hover 4 | . . . . . . 1 3 . . . . . . . Flight 1 | . . . . . . . 1 . . . . . . . Utility 54 | 1 3 2 3 1 1 8 7 . 8 9 2 7 2 . Device 12 | . 1 . . . . 3 1 . 3 . . 3 1 . Storage 8 | 1 1 . . . . . 2 . 1 1 1 . 1 . Processor 7 | . . 2 1 1 . 1 1 . . . . 1 . . Hackware 10 | . . . . . . 1 3 . 1 5 . . . . Protection 17 | . 1 . 2 . 1 3 . . 3 3 1 3 . . Artifact . | . . . . . . . . . . . . . . . Weapon 70 | 2 5 2 4 4 15 13 5 1 3 12 . 4 . . Energy Gun 5 | 2 1 . . . . . 2 . . . . . . . Energy Cannon 2 | . 1 . . . . . . . 1 . . . . . Ballistic Gun 26 | . 3 2 3 2 7 8 . 1 . . . . . . Ballistic Cannon 7 | . . . . . . . . . . 4 . 3 . . Launcher 6 | . . . . . 4 . 1 . . 1 . . . . Special Weapon 5 | . . . . . . 4 1 . . . . . . . Impact Weapon 1 | . . . . . . . . . 1 . . . . . Slashing Weapon 12 | . . . 1 2 4 1 1 . 1 2 . . . . Piercing Weapon 6 | . . . . . . . . . . 5 . 1 . . Special Melee Weapon . | . . . . . . . . . . . . . . . Unidentified Prototypes 2 | . . . 1 . . . . . 1 . . . . . Parts Lost 32 | . 5 1 . . 3 10 2 . 1 2 . . 5 3 Power 6 | . 2 . . . . 2 . . . 1 . . 1 . Propulsion 11 | . 1 1 . . 2 3 . . . . . . 1 3 Utility 11 | . 1 . . . 1 3 1 . 1 1 . . 3 . Weapon 4 | . 1 . . . . 2 1 . . . . . . . Highest Loss Streak 8 | . 2 1 . . 1 8 3 . 1 1 . . 2 5 To Critical Strikes . | . . . . . . . . . . . . . . . Average Slot Usage (%) 91 | . 85 99 99 100 98 81 62 100 88 91 92 85 79 21 Engine 7 | . 7 7 11 11 11 5 . . 4 3 7 7 5 . Core 1 | . . 6 . . . . 3 9 2 3 . . . . Treads 10 | . 12 4 22 22 20 13 . . . . . . . . Leg 5 | . 14 22 . . . . . . . . . 10 22 6 Wheel 1 | . . . . . . . . . 5 7 7 2 . . Device 5 | . 5 . . . . 15 5 9 13 13 . 6 7 . Storage 10 | . 14 14 11 11 11 . 8 9 13 14 15 . 5 3 Processor 12 | . . 4 22 22 22 16 15 18 11 1 . 2 6 5 Hackware 5 | . . . . . . 6 7 18 12 14 30 17 . . Protection 10 | . 2 9 11 11 11 7 . . 3 15 15 21 16 . Ballistic Gun 12 | . 22 28 21 20 18 11 . . 1 . . . . . Ballistic Cannon 2 | . . . . . . . . . . 5 . 13 13 6 Slashing Weapon 1 | . . . . 1 2 . 1 8 3 1 . . . . Piercing Weapon 1 | . . . . . . . . . . 7 15 1 . . Naked Turns 13 | . . . . . . . . . . . . . . 13 Heaviest Build 79 | 13 30 31 36 36 36 20 14 15 33 45 29 79 79 21 Greatest Support 80 | 40 40 40 40 40 40 40 18 18 28 28 28 40 80 60 Greatest Overweight (x) 6 | . 2 2 . . 1 4 2 . 1 1 1 3 1 6 Average Overweight (x) . | . . . . . . . . . . . . 1 . . Largest Inventory Capacity 15 | 8 15 15 15 15 15 15 5 5 5 5 5 5 5 5 Average Capacity 10 | 7 12 15 15 15 15 5 5 5 5 5 5 5 5 5 Most Carried 15 | . 14 15 15 15 15 15 5 5 5 5 5 5 5 5 Average Carried 9 | . 7 14 14 14 14 4 4 5 4 4 4 4 4 5 Final Capacity 15 | 8 15 15 15 15 15 5 5 5 5 5 5 5 5 5 Final Carried 15 | . 14 15 15 15 15 4 5 5 5 5 5 4 5 5 Class Distribution -------------------- 68% | Scavenger-Mutant 22% | Mutant 9% | Commander-Mutant Dominant Class ---------------- Scavenger-Mutant | -10/Materials Scavenger-Mutant | -10/Mines Mutant | -9/Materials Commander-Mutant | -9/Storage Scavenger-Mutant | -9/Garrison Scavenger-Mutant | -8/Materials Scavenger-Mutant | -8/Garrison Scavenger-Mutant | -8/Materials Scavenger-Mutant | -7/Factory Scavenger-Mutant | -7/Garrison Mutant | -7/Factory Mutant | -7/DSF Scavenger-Mutant | -6/Factory Mutant | -6/Garrison Resources | -11 -10 -10 -9 -9 -9 -8 -8 -8 -7 -7 -7 -7 -6 -6 ----------- Run | Yrd Mat Min Mat Sto Gar Mat Gar Mat Fac Gar Fac DSF Fac Gar Matter Collected 4146 | 222 416 115 82 556 515 585 365 . 71 538 40 443 198 . Remotely . | . . . . . . . . . . . . . . . Salvage Created 3672 | . 352 37 173 561 556 276 . . 71 662 104 620 260 . Parts 224 | . 28 2 7 40 62 12 . . 1 32 5 23 12 . Haulers Intercepted 5 | . 1 . 1 2 . . . . . . . 1 . . Recyclers Shooed . | . . . . . . . . . . . . . . . Parts Field Recycled . | . . . . . . . . . . . . . . . Retrieved Matter . | . . . . . . . . . . . . . . . Parts Self-Destructed . | . . . . . . . . . . . . . . . Prevented . | . . . . . . . . . . . . . . . Kills | -11 -10 -10 -9 -9 -9 -8 -8 -8 -7 -7 -7 -7 -6 -6 ------- Run | Yrd Mat Min Mat Sto Gar Mat Gar Mat Fac Gar Fac DSF Fac Gar Combat Hostiles Destroyed 92 | . 11 1 2 8 33 5 . . 1 16 . 9 6 . Melee 12 | . . . . . . . . . 1 11 . . . . Guns 37 | . 10 1 2 8 11 5 . . . . . . . . Cannons 20 | . 1 . . . . . . . . 4 . 9 6 . AOE 23 | . . . . . 22 . . . . 1 . . . . Classes Destroyed 17 | . 4 . 1 2 1 1 . . 1 2 2 3 . . Worker 3 | . . . . 2 . . . . . . . . 1 . Builder 2 | . . . . . . . . . . . 1 . 1 . Tunneler 1 | . . . . . . . . . 1 . . . . . Hauler 5 | . 1 . 1 2 . . . . . . . 1 . . Recycler 1 | . . . . . . . . . . . 1 . . . Mechanic 1 | . . . . . . 1 . . . . . . . . Operator 1 | . . . . 1 . . . . . . . . . . Watcher 2 | . 1 . . 1 . . . . . . . . . . Swarmer 26 | . 6 . . . 20 . . . . . . . . . Saboteur 3 | . . . . . . . . . . 3 . . . . Grunt 34 | . 5 1 . 3 9 4 . . . 4 . 4 4 . Duelist 2 | . . . . . . . . . . . . 1 1 . Sentry 15 | . . . 2 5 2 1 . . . 4 . . 1 . Specialist 3 | . . . . . . . . . . . . 3 . . Hunter 4 | . . . . . . . . . . 4 . . . . Programmer 4 | . . . . . 2 . . . 1 1 . . . . Heavy 1 | . . . . . . . . . . . . 1 . . Best Kill Streak 6 | . 3 1 1 3 6 2 . . 1 3 1 4 6 . Combat Bots Only 6 | . 3 1 1 2 6 2 . . 1 3 . 4 4 . Max Kills in Single Turn 4 | . 1 1 1 1 4 1 . . 1 1 1 1 2 . Gunslinging 1 | . . . . . 1 . . . . . . . . . Exploded 4 | . . . . . 4 . . . . 1 . . . . Melee 1 | . . . . . . . . . 1 1 . . . . Uniques/NPCs Destroyed . | . . . . . . . . . . . . . . . Combat | -11 -10 -10 -9 -9 -9 -8 -8 -8 -7 -7 -7 -7 -6 -6 -------- Run | Yrd Mat Min Mat Sto Gar Mat Gar Mat Fac Gar Fac DSF Fac Gar Hostile Shots Fired 840 | . 128 2 14 39 81 149 15 12 26 83 . 36 149 106 Missed 261 | . 28 . 2 7 21 42 4 5 9 21 . 10 67 45 Damage Taken 7671 | . 891 21 166 443 809 1751 136 103 185 622 . 436 1251 857 Core 1870 | . 150 . 41 64 123 406 112 . . 54 . 68 111 741 Absorbed by Shields 410 | . . . . . . . 43 . 69 229 . . . 69 Ignored by Resistances 271 | . . . . . . . . . . . . 137 134 . Core Remaining (%) 54 | 100 . 40 . . 43 . . 5 . . . 82 . . Volleys Fired 288 | . 64 3 13 38 46 48 2 . 7 12 . 22 32 1 Largest 2 | . 2 2 2 2 2 2 1 . 1 2 . 2 2 2 Hottest 114 | . 100 40 50 50 50 50 5 . 5 114 . 114 114 114 Shots Fired 536 | . 124 6 26 76 78 84 2 . 7 23 . 45 63 2 Gun 360 | . 112 6 26 76 67 73 . . . . . . . . Cannon 144 | . 12 . . . . . . . . 22 . 45 63 2 Launcher 13 | . . . . . 11 . 1 . . 1 . . . . Special 19 | . . . . . . 11 1 . 7 . . . . . Kinetic 474 | . 94 6 26 76 67 73 . . . 22 . 45 63 2 Thermal 30 | . 30 . . . . . . . . . . . . . Explosive 13 | . . . . . 11 . 1 . . 1 . . . . Electromagnetic . | . . . . . . . . . . . . . . . Robot Hit Streak 17 | . 13 5 6 14 16 17 2 . 6 5 . 4 5 1 Robot Miss Streak 6 | . 5 . 1 2 4 4 . . 1 2 . 4 6 3 Penetration Max 1 | . . . . . . . . . . . . . 1 . Secondary Targets 2 | . . . . . 2 . . . . . . . . . Max Gunslinging Chain 1 | . . . . . 1 . . . . . . . . . Shots Hit Robots 378 | . 78 5 18 56 53 60 1 . 15 35 2 25 29 1 Core Hits 164 | . 26 2 4 19 40 20 . . 2 22 . 13 16 . Critical Kills . | . . . . . . . . . . . . . . . Critical Parts Destroyed 3 | . . 1 . . 1 1 . . . . . . . . Critical Strikes 22 | . . 1 . 1 1 1 . . 1 6 . 5 6 . Destroy 3 | . . 1 . . 1 1 . . . . . . . . Blast 13 | . . . . . . . . . . 3 . 4 6 . Sever 3 | . . . . 1 . . . . 1 1 . . . . Impale 3 | . . . . . . . . . . 2 . 1 . . Melee Attacks 72 | . . . 1 4 7 . 1 1 18 33 4 3 . . Thermal 1 | . . . . . . . . . . 1 . . . . Impact 4 | . . . . . . . . . 4 . . . . . Slashing 30 | . . . 1 4 7 . 1 1 14 2 . . . . Piercing 37 | . . . . . . . . . . 30 4 3 . . Sneak Attacks 12 | . . . . . . . . . 2 7 2 1 . . Combat Hostiles . | . . . . . . . . . . . . . . . Follow-up Attacks 4 | . . . . . . . . . . 4 . . . . Damage Inflicted 9667 | . 686 40 304 1028 2372 940 . . 480 1505 133 989 1151 39 Guns 3780 | . 582 40 304 993 921 940 . . . . . . . . Cannons 2398 | . 104 . . . . . . . . 344 . 782 1140 28 Explosions 1576 | . . . . . 1451 . . . . 125 . . . . Melee 1882 | . . . . 35 . . . . 471 1036 133 207 . . Ramming 31 | . . . . . . . . . 9 . . . 11 11 Kinetic 5998 | . 506 40 304 993 921 940 . . . 344 . 782 1140 28 Thermal 180 | . 180 . . . . . . . . . . . . . Explosive 1576 | . . . . . 1451 . . . . 125 . . . . Electromagnetic . | . . . . . . . . . . . . . . . Impact 146 | . . . . . . . . . 146 . . . . . Slashing 428 | . . . . 35 . . . . 325 68 . . . . Piercing 1308 | . . . . . . . . . . 968 133 207 . . Highest Corruption 6 | . . . . . 1 . . . 1 3 3 3 6 6 Average Corruption 1 | . . . . . 1 . . . 1 1 3 3 3 6 Corruption Purged . | . . . . . . . . . . . . . . . Corruption Blocked . | . . . . . . . . . . . . . . . Effects 29 | . . . . . 9 . . . . 8 3 6 2 1 Message Errors 6 | . . . . . . . . . . 3 . 2 1 . Matter Fused 10 | . . . . . 4 . . . . 1 2 2 . 1 Heat Flow Errors 3 | . . . . . 1 . . . . 1 . 1 . . Energy Discharges 1 | . . . . . . . . . . . 1 . . . Data Loss (minor) 7 | . . . . . 3 . . . . 3 . . 1 . Misfires 2 | . . . . . 1 . . . . . . 1 . . Overload Shots . | . . . . . . . . . . . . . . . Overflow Damage 418 | . . . . . 48 . . . 145 40 68 108 6 3 Projectiles 26 | . . . . . . . . . . 17 . . 6 3 Explosions 48 | . . . . . 48 . . . . . . . . . Melee 344 | . . . . . . . . . 145 23 68 108 . . Knockbacks 14 | . . . . . . . . . . 2 . 3 7 2 Impact . | . . . . . . . . . . . . . . . Kinetic 12 | . . . . . . . . . . 2 . 3 6 1 Secondary 2 | . . . . . . . . . . . . . 1 1 Self-Inflicted Damage 172 | . . . . . 139 . . . 4 24 . . . 5 Shots 6 | . . . . . 5 . . . . 1 . . . . Rammed 4 | . . . . . . . . . 2 . . . . 2 Targets Rammed 7 | . . . . . . . . . 2 . . . 3 2 Kicked 3 | . . . . . . . . . . . . . 3 . Crushed . | . . . . . . . . . . . . . . . Highest Temperature 360 | . 351 24 77 67 205 43 7 . . 65 . 360 78 3 Average Temperature 54 | . 94 12 32 19 41 16 7 . . 43 . 103 25 2 Received Heat Transfer 2679 | . 186 12 75 165 138 1125 129 63 18 132 . 189 405 42 Effects 1 | . . . . . . . . . . . . 1 . . Energy Bleed 1 | . . . . . . . . . . . . 1 . . Siege Activations . | . . . . . . . . . . . . . . . Robots Corrupted . | . . . . . . . . . . . . . . . Combat Hostiles . | . . . . . . . . . . . . . . . Parts Fried 3 | . . . . . . . . . 3 . . . . . Impact Corruptions 2 | . . . . . . . . . 1 . . . . 1 Robots Melted . | . . . . . . . . . . . . . . . Combat Hostiles . | . . . . . . . . . . . . . . . Parts Melted 3 | . . . . . . . . . . . . 3 . . Heat Transferred 397 | . 397 . . . . . . . . . . . . . Parts Sabotaged . | . . . . . . . . . . . . . . . Parts Stolen . | . . . . . . . . . . . . . . . Parts Stripped . | . . . . . . . . . . . . . . . Power Chain Reactions . | . . . . . . . . . . . . . . . Alert | -11 -10 -10 -9 -9 -9 -8 -8 -8 -7 -7 -7 -7 -6 -6 ------- Run | Yrd Mat Min Mat Sto Gar Mat Gar Mat Fac Gar Fac DSF Fac Gar Peak Influence 1476 | . 147 194 125 528 1476 845 438 335 323 610 334 470 554 324 Initial 719 | . . 57 . 52 343 719 438 210 151 110 319 233 246 248 Average 401 | . 75 83 33 247 989 765 431 245 223 393 322 377 393 254 Maximum Alert Level 4 | . . . . 2 4 3 2 1 1 2 1 2 2 1 Low Security (%) 35 | 100 100 100 100 44 . . . . 54 7 . . . . Level 1 24 | . . . . 44 6 . . 100 45 37 100 40 44 100 Level 2 22 | . . . . 11 19 20 100 . . 54 . 59 55 . Level 3 10 | . . . . . 34 79 . . . . . . . . Level 4 6 | . . . . . 40 . . . . . . . . . Level 5 . | . . . . . . . . . . . . . . . High Security . | . . . . . . . . . . . . . . . Max Security . | . . . . . . . . . . . . . . . Sterilizations 1 | . . . . . . . . . . . . 1 . . Squads Dispatched 21 | . 2 . 1 5 . 2 . 1 3 . . 2 5 . Investigation 5 | . 1 . . 3 . . . . . . . . 1 . Extermination 2 | . . . . . . . . . 1 . . . 1 . Reinforcement 7 | . 1 . 1 . . . . 1 1 . . 2 1 . Assault 1 | . . . . . . . . . 1 . . . . . Garrison 6 | . . . . 2 . 2 . . . . . . 2 . Intercept . | . . . . . . . . . . . . . . . Searches Triggered . | . . . . . . . . . . . . . . . Construction Impeded 1 | . . . . . . . . . . . . . 1 . Haulers Reinforced . | . . . . . . . . . . . . . . . Active Scanning Responses . | . . . . . . . . . . . . . . . Cargo Convoy Interrupts . | . . . . . . . . . . . . . . . Stealth | -11 -10 -10 -9 -9 -9 -8 -8 -8 -7 -7 -7 -7 -6 -6 --------- Run | Yrd Mat Min Mat Sto Gar Mat Gar Mat Fac Gar Fac DSF Fac Gar Distress Signals 4 | . . . . 1 . 2 . 1 . . . . . . Communications Jammed . | . . . . . . . . . . . . . . . Distress Signals . | . . . . . . . . . . . . . . . Times Spotted 178 | . 17 2 4 22 33 22 3 8 4 12 . 9 17 25 Peak Tracking Total 24 | . 4 2 2 4 6 9 3 8 2 3 . 3 8 24 Tactical Retreats 16 | . 1 . . . 4 3 1 1 . 1 . . 3 2 Traps | -11 -10 -10 -9 -9 -9 -8 -8 -8 -7 -7 -7 -7 -6 -6 ------- Run | Yrd Mat Min Mat Sto Gar Mat Gar Mat Fac Gar Fac DSF Fac Gar Traps Triggered 11 | . 1 . . 1 2 . 1 . 1 2 1 1 . 1 Indirectly . | . . . . . . . . . . . . . . . Trap Hack Attempts . | . . . . . . . . . . . . . . . Triggered . | . . . . . . . . . . . . . . . Disarmed . | . . . . . . . . . . . . . . . Reprogrammed . | . . . . . . . . . . . . . . . Reused . | . . . . . . . . . . . . . . . Traps Extracted . | . . . . . . . . . . . . . . . Installed . | . . . . . . . . . . . . . . . Triggered . | . . . . . . . . . . . . . . . Machines | -11 -10 -10 -9 -9 -9 -8 -8 -8 -7 -7 -7 -7 -6 -6 ---------- Run | Yrd Mat Min Mat Sto Gar Mat Gar Mat Fac Gar Fac DSF Fac Gar Machines Disabled 19 | . . . 1 3 4 . . . 1 3 . 1 6 . Max in Single Turn 1 | . . . . 1 1 . . . 1 1 . 1 1 . Garrison Access 1 | . . . . . . . . . 1 . . . . . Garrison Relay 6 | . . . . . 4 . . . . 2 . . . . Machines Repaired . | . . . . . . . . . . . . . . . Machines Dismantled . | . . . . . . . . . . . . . . . Machines Sabotaged . | . . . . . . . . . . . . . . . Overloaded Fab Kills . | . . . . . . . . . . . . . . . Hacking | -11 -10 -10 -9 -9 -9 -8 -8 -8 -7 -7 -7 -7 -6 -6 --------- Run | Yrd Mat Min Mat Sto Gar Mat Gar Mat Fac Gar Fac DSF Fac Gar Machines Accessed 33 | . 1 1 1 12 2 2 . 2 7 1 1 . 3 . Terminals 24 | . 1 1 . 11 2 1 . 1 3 1 1 . 2 . Fabricators . | . . . . . . . . . . . . . . . Repair Stations 1 | . . . . . . . . . 1 . . . . . Recycling Units 2 | . . . 1 . . . . . 1 . . . . . Scanalyzers . | . . . . . . . . . . . . . . . Garrison Access 6 | . . . . 1 . 1 . 1 2 . . . 1 . Total Hacks 74 | . 3 3 3 26 6 5 . 5 13 3 1 . 6 . Successful 33 | . 1 1 2 16 . 1 . 3 6 . 1 . 2 . Failed 41 | . 2 2 1 10 6 4 . 2 7 3 . . 4 . Catastrophic 8 | . . 1 . 4 . . . . 2 1 . . . . Database Lockouts . | . . . . . . . . . . . . . . . Manual 37 | . 3 3 1 17 . 4 . . 4 . 2 . 3 . Terminals 59 | . 3 3 . 25 6 4 . 4 5 3 1 . 5 . Fabricators . | . . . . . . . . . . . . . . . Repair Stations 3 | . . . . . . . . . 3 . . . . . Recycling Units 5 | . . . 3 . . . . . 2 . . . . . Scanalyzers . | . . . . . . . . . . . . . . . Garrison Access 7 | . . . . 1 . 1 . 1 3 . . . 1 . Terminal Hacks 17 | . . 1 . 11 . . . 2 1 . 1 . 1 . Robot Analysis 5 | . . . . 5 . . . . . . . . . . Prototype ID Bank 2 | . . . . 1 . . . 1 . . . . . . Open Door 4 | . . . . 4 . . . . . . . . . . Open DSF 2 | . . . . . . . . . . . 1 . 1 . Branch Access Points 1 | . . 1 . . . . . . . . . . . . Terminal Index 2 | . . . . 1 . . . . 1 . . . . . Hauler Manifests 1 | . . . . . . . . 1 . . . . . . Fabricator Hacks . | . . . . . . . . . . . . . . . Repair Station Hacks 1 | . . . . . . . . . 1 . . . . . Scan Component 1 | . . . . . . . . . 1 . . . . . Recycling Unit Hacks 1 | . . . 1 . . . . . . . . . . . Retrieve Components 1 | . . . 1 . . . . . . . . . . . Scanalyzer . | . . . . . . . . . . . . . . . Garrison Access Hacks 7 | . . . . 1 . 1 . 1 3 . . . 1 . Unlock Access 4 | . . . . 1 . 1 . . 1 . . . 1 . Coupler Status 3 | . . . . . . . . 1 2 . . . . . Unauthorized Hacks 7 | . 1 . 1 4 . . . . 1 . . . . . Terminals 5 | . 1 . . 4 . . . . . . . . . . Botnet 5 | . 1 . . 4 . . . . . . . . . . Fabricators . | . . . . . . . . . . . . . . . Repair Stations . | . . . . . . . . . . . . . . . Recycling Units 2 | . . . 1 . . . . . 1 . . . . . Reject 2 | . . . 1 . . . . . 1 . . . . . Scanalyzers . | . . . . . . . . . . . . . . . Garrison Access . | . . . . . . . . . . . . . . . Data Cores Recovered 1 | . . . . 1 . . . . . . . . . . Used 1 | . . . . 1 . . . . . . . . . . Hacking Detections 26 | . 1 1 . 9 2 1 . 1 6 1 1 . 3 . Full Trace Events 4 | . 1 . . 2 . . . . . . . . 1 . Feedback Events . | . . . . . . . . . . . . . . . Feedback Blocked . | . . . . . . . . . . . . . . . Robot Schematics Acquired . | . . . . . . . . . . . . . . . Robots Built . | . . . . . . . . . . . . . . . Authchips . | . . . . . . . . . . . . . . . Time . | . . . . . . . . . . . . . . . Total Robot Build Rating . | . . . . . . . . . . . . . . . Part Schematics Acquired . | . . . . . . . . . . . . . . . Parts Built . | . . . . . . . . . . . . . . . Authchips . | . . . . . . . . . . . . . . . Time . | . . . . . . . . . . . . . . . Total Part Build Rating . | . . . . . . . . . . . . . . . Parts Repaired . | . . . . . . . . . . . . . . . Time . | . . . . . . . . . . . . . . . Parts Recycled . | . . . . . . . . . . . . . . . Recycled Matter . | . . . . . . . . . . . . . . . Retrieved Matter . | . . . . . . . . . . . . . . . Retrieved Components 9 | . . . 9 . . . . . . . . . . . Parts Scanalyzed . | . . . . . . . . . . . . . . . Part Schematics Acquired . | . . . . . . . . . . . . . . . Parts Damaged . | . . . . . . . . . . . . . . . Bothacking | -11 -10 -10 -9 -9 -9 -8 -8 -8 -7 -7 -7 -7 -6 -6 ------------ Run | Yrd Mat Min Mat Sto Gar Mat Gar Mat Fac Gar Fac DSF Fac Gar Used RIF Installer 2 | . . . . . 1 . 1 . . . . . . . Command Fork 1 | . . . . . . . 1 . . . . . . . Robots Hacked 9 | . . . . . . 4 . . 5 . . . . . Non-combat 7 | . . . . . . 3 . . 4 . . . . . Combat 2 | . . . . . . 1 . . 1 . . . . . Robot Hacks Applied 11 | . . . . . . 5 . . 6 . . . . . parse_system 3 | . . . . . . 1 . . 2 . . . . . no_distress 2 | . . . . . . . . . 2 . . . . . find_recycling 1 | . . . . . . . . . 1 . . . . . find_station 1 | . . . . . . . . . 1 . . . . . map_route 1 | . . . . . . 1 . . . . . . . . relay_feed 1 | . . . . . . 1 . . . . . . . . link_fov 1 | . . . . . . 1 . . . . . . . . amplify_resonance 1 | . . . . . . 1 . . . . . . . . Relay Couplers Released 29 | . . . . . 16 . 3 . 1 9 . . . . Machine Destruction 26 | . . . . . 16 . . . 1 9 . . . . Programmers 3 | . . . . . . . 3 . . . . . . . Attached 10 | . . . . . . 1 3 . 1 5 . . . . Fabnet Peak Effective % . | . . . . . . . . . . . . . . . Robots Rewired . | . . . . . . . . . . . . . . . Allies Hacked . | . . . . . . . . . . . . . . . Hacks Repelled . | . . . . . . . . . . . . . . . Allies | -11 -10 -10 -9 -9 -9 -8 -8 -8 -7 -7 -7 -7 -6 -6 -------- Run | Yrd Mat Min Mat Sto Gar Mat Gar Mat Fac Gar Fac DSF Fac Gar Total Allies 13 | . . 3 . 10 . . . . . . . . . . Largest Group 12 | . . 3 2 12 . . . . . . . . . . Highest-Rated Group 120 | . . 40 32 120 . . . . . . . . . . Highest-Rated Ally 16 | . . 16 16 16 . . . . . . . . . . Total Orders 6 | . . 1 3 2 . . . . . . . . . . STAY 2 | . . . 1 1 . . . . . . . . . . ROAM 1 | . . 1 . . . . . . . . . . . . FOLLOW 2 | . . . 1 1 . . . . . . . . . . GUARD 1 | . . . 1 . . . . . . . . . . . Ally Attacks 155 | . . 22 25 108 . . . . . . . . . . Total Damage 1517 | . . 216 277 1024 . . . . . . . . . . Kills 26 | . . 4 5 17 . . . . . . . . . . Allies Corrupted . | . . . . . . . . . . . . . . . Allies Melted . | . . . . . . . . . . . . . . . Intel | -11 -10 -10 -9 -9 -9 -8 -8 -8 -7 -7 -7 -7 -6 -6 ------- Run | Yrd Mat Min Mat Sto Gar Mat Gar Mat Fac Gar Fac DSF Fac Gar Robot Analysis Total 5 | . . . . 5 . . . . . . . . . . Derelict Logs Recovered 3 | . . 3 . . . . . . . . . . . . Drone Launches . | . . . . . . . . . . . . . . . Drone Recoveries . | . . . . . . . . . . . . . . . Exploration | -11 -10 -10 -9 -9 -9 -8 -8 -8 -7 -7 -7 -7 -6 -6 ------------- Run | Yrd Mat Min Mat Sto Gar Mat Gar Mat Fac Gar Fac DSF Fac Gar Turns Passed 7807 | 71 643 686 529 1012 1332 501 282 136 552 966 263 326 444 64 Spaces Moved 4499 | 42 223 349 221 508 582 271 326 155 485 704 211 121 226 75 Core 256 | 4 . . . . . 107 88 . . . . . . 57 Treads 1670 | 38 102 68 221 508 582 151 . . . . . . . . Legs 721 | . 121 281 . . . . . . . . . 75 226 18 Wheels 1288 | . . . . . . . . . 327 704 211 46 . . Hover 564 | . . . . . . 13 238 155 158 . . . . . Flight . | . . . . . . . . . . . . . . . Fastest Speed 50 | 50 160 160 160 160 160 50 50 56 56 100 100 100 120 50 Average Speed 132 | 149 178 185 160 160 168 119 59 56 92 113 114 164 148 70 Slowest Speed 350 | 160 260 260 160 160 240 250 150 56 116 115 115 330 190 350 Overloaded Moves . | . . . . . . . . . . . . . . . Propulsion Burnouts . | . . . . . . . . . . . . . . . Robots Hopped . | . . . . . . . . . . . . . . . Cave-ins Triggered . | . . . . . . . . . . . . . . . Exploration Rate (%) 34 | 4 36 83 17 67 63 34 32 16 15 43 5 83 6 20 Regions Visited 14 Branch Regions 2 Pre-discovered Areas . | . . . . . . . . . . . . . . . Known Exits Taken 7 | . . 1 1 1 . 1 . . 1 . 1 . 1 . Unknown Exits Taken 3 | 1 1 . . . . . . 1 . . . . . . Scrap Searched 1 | . . 1 . . . . . . . . . . . . Spaces Dug 7 | . . . 1 1 . . . . . . . . 5 . Terrain Destroyed 71 | . . . 1 1 33 . . . . . . 14 21 1 Melee 2 | . . . 1 1 . . . . . . . . . . Projectile 36 | . . . . . . . . . . . . 14 21 1 AOE 33 | . . . . . 33 . . . . . . . . . Terrain Rammed . | . . . . . . . . . . . . . . . Walls Destroyed . | . . . . . . . . . . . . . . . Machines Disabled . | . . . . . . . . . . . . . . . Actions | -11 -10 -10 -9 -9 -9 -8 -8 -8 -7 -7 -7 -7 -6 -6 --------- Run | Yrd Mat Min Mat Sto Gar Mat Gar Mat Fac Gar Fac DSF Fac Gar Total 5863 | 47 359 384 391 659 870 392 408 201 558 805 231 200 272 86 Wait 589 | . 40 10 112 86 199 23 30 44 12 4 2 24 3 . Move 4484 | 41 222 348 220 507 580 270 324 154 485 702 210 120 226 75 Hop . | . . . . . . . . . . . . . . . Pick Up 64 | . 10 4 14 4 8 4 5 . 5 3 3 3 1 . Fast Attach 81 | 6 9 5 1 . . 7 15 1 12 12 1 9 3 . Attach 25 | . 3 1 2 . 4 9 3 . 2 . . . 1 . Detach 26 | . 6 1 . . 1 5 2 . 4 1 . 4 2 . Swap 74 | . 5 4 10 10 15 11 . . . 13 1 5 . . Drop 112 | . . 8 18 9 6 15 7 1 12 16 4 10 2 4 Fire 288 | . 64 3 13 38 46 48 2 . 7 12 . 22 32 1 Melee 63 | . . . 1 4 7 . 1 1 18 26 2 3 . . Ram 3 | . . . . . . . . . 1 . . . . 2 Kick 2 | . . . . . . . . . . . . . 2 . Crush . | . . . . . . . . . . . . . . . Escape Stasis 51 | . . . . . 4 . 19 . . 16 8 . . 4 Rewire 1 | . . . . 1 . . . . . . . . . . Trap . | . . . . . . . . . . . . . . . Miscellaneous . | . . . . . . . . . . . . . . . Route ------- -11/Scrapyard -10/Materials -10/Mines (discovered 2 exits: *Mat x2) -9/Materials -9/Storage (discovered 3 exits: *Mat / [*Rec] / Gar) -9/Garrison (discovered 2 exits: *Mat x2) -8/Materials -8/Garrison -8/Materials -7/Factory (discovered 2 exits: *Fac / Gar) -7/Garrison -7/Factory (discovered 3 exits: *Fac / [*Low] / DSF) -7/DSF -6/Factory -6/Garrison History --------- Turn | Location | Event 35 | -11/Scrapyard | Discovered new exit (range 15) 72 | -11/Scrapyard | Entered Materials 316 | -10/Materials | Build established: Mutant 358 | -10/Materials | Core integrity fell below 50% 538 | -10/Materials | Discovered new exit (range 11) 664 | -10/Materials | Build established: Scavenger-Mutant 715 | -10/Materials | Entered Mines 719 | -10/Mines | Assisted by bots powering up and referring to "LRC-V3" 744 | -10/Mines | Discovered new exit (range 7) 810 | -10/Mines | Learned Materials terminal intel 941 | -10/Mines | Received a Rocket Launcher from a helpful Derelict 1151 | -10/Mines | Discovered new exit (range 5) 1162 | -10/Mines | Identified exit to Materials 1230 | -10/Mines | Found a damaged Exp. Sensor Array with a note attached 1259 | -10/Mines | Joined a pair of Derelicts in attacking an 0b10 outpost 1401 | -10/Mines | Entered Materials 1401 | -9/Materials | Accompanied by 2 allies 1401 | -9/Materials | Evolved 2 slots: Utility x2 1402 | -9/Materials | Identified exit to Storage 1403 | -9/Materials | Loaded intel: 12 terminal locations 1818 | -9/Materials | Build established: Mutant 1930 | -9/Materials | Entered Storage 1930 | -9/Storage | Accompanied by 2 allies 2064 | -9/Storage | Assisted by bots powering up and referring to "LRC-V3" 2402 | -9/Storage | Build established: Commander-Mutant 2405 | -9/Storage | Discovered new exit (range 5) 2626 | -9/Storage | Used back door to open Recycling access 2626 | -9/Storage | Discovered new exit (range 5) 2798 | -9/Storage | Garrison activated, responded to threat 2829 | -9/Storage | Lost 5 allies 2922 | -9/Storage | Identified exit to Garrison 2942 | -9/Storage | Entered Garrison 2998 | -9/Garrison | Triggered checkpoint 3029 | -9/Garrison | Garrison Relay disabled 3096 | -9/Garrison | Build established: Scavenger-Mutant 3127 | -9/Garrison | Garrison Relay disabled 3277 | -9/Garrison | Triggered checkpoint 3364 | -9/Garrison | Discovered new exit (range 10) 3366 | -9/Garrison | Triggered checkpoint 3506 | -9/Garrison | Triggered checkpoint 3512 | -9/Garrison | Core integrity fell below 50% 3890 | -9/Garrison | Triggered checkpoint 3947 | -9/Garrison | Garrison Relay disabled 3994 | -9/Garrison | Discovered new exit (range 15) 4060 | -9/Garrison | Triggered checkpoint 4097 | -9/Garrison | Installed Relay Interface Framework 4274 | -9/Garrison | Entered Materials 4274 | -8/Materials | Evolved 2 slots: Utility x2 4644 | -8/Materials | Garrison activated, responded to threat 4689 | -8/Materials | Core integrity fell below 50% 4710 | -8/Materials | Lost 8 parts (1p2n3u2w) 4774 | -8/Materials | Identified exit to Garrison 4775 | -8/Materials | Entered Garrison 4775 | -8/Garrison | Warlord forces raided the area 4789 | -8/Garrison | Triggered checkpoint 4793 | -8/Garrison | Core integrity fell below 20% 4825 | -8/Garrison | Lost 3 parts (1n1u1w) 4859 | -8/Garrison | Triggered checkpoint 4891 | -8/Garrison | Triggered checkpoint 4907 | -8/Garrison | Triggered checkpoint 4955 | -8/Garrison | Triggered checkpoint 5036 | -8/Garrison | Discovered new exit (range 12) 5041 | -8/Garrison | Expanded RIF knowledge: Command Fork 5057 | -8/Garrison | Entered Materials 5192 | -8/Materials | Discovered new exit (range 3) 5193 | -8/Materials | Entered Factory 5193 | -7/Factory | Evolved 2 slots: Utility x2 5216 | -7/Factory | Discovered new exit (range 19) 5740 | -7/Factory | Identified exit to Garrison 5745 | -7/Factory | Entered Garrison 5757 | -7/Garrison | Triggered checkpoint 5822 | -7/Garrison | Garrison Relay disabled 6013 | -7/Garrison | Triggered checkpoint 6029 | -7/Garrison | Triggered checkpoint 6503 | -7/Garrison | Discovered new exit (range 10) 6549 | -7/Garrison | Triggered checkpoint 6598 | -7/Garrison | Triggered checkpoint 6635 | -7/Garrison | Garrison Relay disabled 6711 | -7/Garrison | Entered Factory 6927 | -7/Factory | Discovered new exit (range 13) 6951 | -7/Factory | Discovered new exit (range 15) 6957 | -7/Factory | Identified exit to DSF 6974 | -7/Factory | Entered DSF 7024 | -7/DSF | Additional patrols routed to DSF 7097 | -7/DSF | Build established: Mutant 7160 | -7/DSF | Sterilization system engaged 7180 | -7/DSF | Ambient heat levels rising (+10) 7195 | -7/DSF | Ambient heat levels rising (+10) 7210 | -7/DSF | Ambient heat levels rising (+10) 7225 | -7/DSF | Ambient heat levels rising (+10) 7232 | -7/DSF | Discovered new exit (range 15) 7240 | -7/DSF | Ambient heat levels rising (+10) 7255 | -7/DSF | Ambient heat levels rising (+10) 7270 | -7/DSF | Ambient heat levels rising (+10) 7285 | -7/DSF | Ambient heat levels rising (+10) 7300 | -7/DSF | Ambient heat levels rising (+10) 7300 | -7/DSF | Entered Factory 7300 | -6/Factory | Evolved 2 slots: Propulsion x2 7603 | -6/Factory | Garrison activated, responded to threat 7609 | -6/Factory | Build established: Scavenger-Mutant 7738 | -6/Factory | Identified exit to Garrison 7744 | -6/Factory | Entered Garrison 7757 | -6/Garrison | Triggered checkpoint 7795 | -6/Garrison | Spotted B-75 Beast 7800 | -6/Garrison | Lost 5 parts (1p4n) 7801 | -6/Garrison | Core integrity fell below 50% 7806 | -6/Garrison | Core integrity fell below 20% 7808 | -6/Garrison | Destroyed by C-17 Slicer with Blade Saw Last Messages --------------- 07774_ Dropped Enh. Gauss Cannon. 07775_ Extracted 15 energy. 07792_ Slammed into C-17 Slicer. 07793_ Enh. Optical Array broken. 07793_ Destabilizing: Short circuit. 07795_ Broken Enh. Optical Array severed. Garrison Door activated. 07799_ Critical hit (Burn: +37). Garrison Door activated. 07804_ Triggered Stasis Trap. 07804_ A bubble of rippling energy engulfs the area. 07804_ Field strength at 94. 07804_ Field strength at 88. 07805_ Field strength at 68. 07806_ C-17 Slicer destroyed. 07806_ Field strength at 35. 07807_ Field strength at 15. 07808_ S-27 Virus suffers critical hit (Burn). 07808_ S-27 Virus destroyed. 07808_ Stasis field depleted. Map ----- +----------------------------------------------------+ | ????????????????????????# #? | | ????????????????????????# #? | | ????????????????????????# ################### #? | | ????????????????????????# #?????????????????# #? | | ????????????????????????# #?????????????????" #? | | ????????????????????????# #?????????????????" #? | | ????????????????????????# #?????????????????" #? | | ??????????????#???####??# #?????????????????# #? | | ??????????????# ?# ?# #?????????????????# #? | | ?????????????## ## ## ##????????????????# #? | | ?????????????# #????????????????# #? | | ????????? #????????????????# ? | | ????????? #????????????????# ? | | ??????????#### ## ## #????????????????####? | | ?????????????# ## ##g ###??????????????????? | | ?????????????" % s #??????????????????? | | ?????????????" g #??????????????????? | | ?????????????" [ s #??????????????????? | | ?????????????" =% #??????????????????? | | ?????????????# ## =%##s s###??????????????????? | | ?????????????# ## =## #????????????????????? | | ?????????????# ss #????????????????????? | | ?????????????# s! #????????????????????? | | ?????????????# sc*^#????????????????????? | | ?????????????# ## ##cc #????????????????????? | | ?????????????# ?# ?#@ #????????????????????? | | ?????????????# ???####??# #????????????????????? | | ????????????????????????# #????????????????????? | | ????????????????????????# #????????????????????? | | ????????????????????????# #????????????????????? | | ????????????????????????# #????????????????????? | | ????????????????????????# ????????????????????? | | ????????????????????????# ????????????????????? | | ????????????????????????# ???????????????????? | | ?????????????????????????#####???????????????????? | | ?????????????????????????????????????????????????? | | ?????????????????????????????????????????????????? | | ?????????????????????????????????????????????????? | | ?????????????????????????????????????????????????? | | ?????????????????????????????????????????????????? | | ?????????????????????????????????????????????????? | | ?????????????????????????????????????????????????? | | ?????????????????????????????????????????????????? | | ?????????????????????????????????????????????????? | | ?????????????????????????????????????????????????? | | ?????????????????????????????????????????????????? | | ?????????????????????????????????????????????????? | | ?????????????????????????????????????????????????? | | ?????????????????????????????????????????????????? | | ?????????????????????????????????????????????????? | +----------------------------------------------------+ Best States ------------- Heat Dissipation 103 Energy Generation 18 Energy Capacity 690 Matter Stores 300 Matter Capacity 300 Sight Range 22 Robot Scan Range 15 Terrain Scan Density 10 Corruption Block 8 Armor Coverage 1050 Resistance: KI 30 Resistance: TH 15 Evasion (%) 55 Targeting Accuracy 5 Recoil Reduction 2 Relay Coupler Types 4 Relay Coupler Value 104 Authchip Count 1 Item Schematics ----------------- None Robot Schematics ------------------ None Fabricated ------------ Nothing Alien Tech Used ----------------- None Achievements -------------- Error 47 Challenges ------------ None Game ------ Seed SlugMassPurifier Manual? 0 Play Time 01:12:17 Cumulative 86.6 hours Start 2024.06.15 @ 19:59:30 End 2024.06.15 @ 21:11:12 Sessions 1 Manual Loads 0 Difficulty Rogue Special Mode None Game No. 98 Rogue 92 Adventurer 6 Explorer 0 Win Type - Total 0 Types 0/0/0/0/0/0/0/0/0 Lore% 36 Gallery% 51 Achievement% 38 Wizard Run 0 Options --------- Layout 0 ASCII 0 Keyboard 1 Movement Numpad Keybinds 0 Fullscreen 0 Font 14/Smallcaps Map View 76x50 Zoom Use 0% Tactical HUD 1 Map Filters NONE Filters NONE Steam 1 RUN: be416cfa-6a89-451e-9e08-88cee3dd114e